fUSD/lending_fUSD_20240904
["ID","MTS","AMOUNT","RATE_DAILY","PERIOD"]
[337180235,1725492639095,-688.21,0.00014892,2]
[337180237,1725492639104,-500.0,0.00014892,2]
[337180239,1725492639114,-3995.45,0.00014892,2]
[337180241,1725492639124,-500.0,0.00014892,2]
[337180243,1725492639133,-500.0,0.00014892,2]
[337180245,1725492639144,-589.23,0.00014892,2]
[337180247,1725492639153,-500.0,0.00014892,2]
[337180249,1725492639163,-759.7,0.00014892,2]
[337180251,1725492639172,-500.0,0.00014892,2]
[337180252,1725492639181,-990.08,0.00014892,2]
[337180254,1725492639190,-990.08,0.00014892,2]
[337180256,1725492639199,-4023.49477515,0.00014892,2]
[337180257,1725492639211,-835.77,0.00014892,2]
[337180258,1725492639230,-30645.67522485,0.00014892,2]
[337180259,1725492639240,-344.42514531,0.00014892,2]
[337180260,1725492639249,-944.52,0.00014892,2]
[337180261,1725492639258,-500.0,0.00014892,2]
[337180262,1725492639268,-2834.76,0.00014892,2]
[337180263,1725492639277,-500.0,0.00014892,2]
[337180264,1725492639288,-500.0,0.00014892,2]
[337180265,1725492639297,-398.98498683,0.00014892,2]
[337180266,1725492639307,-603.75,0.00014892,2]
[337180267,1725492639316,-516.82706767,0.00014892,2]
[337180268,1725492639326,-500.0,0.00014892,2]
[337180269,1725492639335,-6851.68,0.00014892,2]
[337180270,1725492639344,-6851.68,0.00014892,2]
[337180271,1725492639353,-1567.43,0.00014892,2]
[337180272,1725492639363,-500.0,0.00014892,2]
[337180273,1725492639372,-5466.76,0.00014892,2]
[337180274,1725492639382,-606.4375301,0.00014892,2]
[337180275,1725492639391,-548.73,0.00014892,2]
[337180276,1725492639399,-1171.07,0.00014892,2]
[337180277,1725492639409,-13028.41,0.00014892,2]
[337180278,1725492639419,-13028.41,0.00014892,2]
[337180279,1725492639428,-500.0,0.00014892,2]
[337180280,1725492639437,-2153.09,0.00014892,2]
[337180281,1725492639446,-2942.76,0.00014892,2]
[337180282,1725492639455,-193.51623246,0.00014892,2]
[337180283,1725492639464,-500.0,0.00014892,2]
[337180284,1725492639473,-500.0,0.00014892,2]
[337180285,1725492639483,-1177.18,0.00014892,2]
[337180286,1725492639492,-755.77,0.00014892,2]
[337180287,1725492639502,-500.0,0.00014892,2]
[337180288,1725492639512,-500.0,0.00014892,2]
[337180289,1725492639522,-500.0,0.00014892,2]
[337180290,1725492639531,-500.0,0.00014892,2]
[337180291,1725492639544,-500.0,0.00014892,2]
[337180292,1725492639554,-500.0,0.00014892,2]
[337180293,1725492639564,-500.0,0.00014892,2]
[337180294,1725492639573,-500.0,0.00014892,2]
[337180295,1725492639583,-500.0,0.00014892,2]
[337180296,1725492639592,-500.0,0.00014892,2]
[337180297,1725492639602,-500.0,0.00014892,2]
[337180298,1725492639612,-500.0,0.00014892,2]
[337180299,1725492639622,-500.0,0.00014892,2]
[337180300,1725492639632,-500.0,0.00014892,2]
[337180301,1725492639641,-2048.35,0.00014892,2]
[337180302,1725492639651,-500.0,0.00014892,2]
[337180303,1725492639660,-1195.36,0.00014892,2]
[337180304,1725492639670,-500.0,0.00014892,2]
[337180305,1725492639680,-520.68,0.00014892,2]
[337180306,1725492639690,-553.26,0.00014892,2]
[337180307,1725492639699,-520.68,0.00014892,2]
[337180308,1725492639709,-553.26,0.00014892,2]
[337180309,1725492639719,-520.68,0.00014892,2]
[337180311,1725492639730,-553.26,0.00014892,2]
[337180312,1725492639740,-151.0,0.00014892,2]
[337180313,1725492639750,-500.0,0.00014892,2]
[337180314,1725492639761,-500.0,0.00014892,2]
[337180315,1725492639770,-500.0,0.00014892,2]
[337180316,1725492639780,-500.0,0.00014892,2]
[337180317,1725492639792,-500.0,0.00014892,2]
[337180318,1725492639801,-500.0,0.00014892,2]
[337180319,1725492639811,-500.0,0.00014892,2]
[337180320,1725492639821,-151.0,0.00014892,2]
[337180321,1725492639832,-500.0,0.00014892,2]
[337180322,1725492639842,-151.0,0.00014892,2]
[337180323,1725492639852,-500.0,0.00014892,2]
[337180324,1725492639861,-500.0,0.00014892,2]
[337180325,1725492639870,-930.99,0.00014892,2]
[337180326,1725492639880,-2718.76,0.00014892,2]
[337180327,1725492639889,-1969.71,0.00014892,2]
[337180328,1725492639899,-587.75381348,0.00014892,2]
[337180329,1725492639908,-168.1999461,0.00014893,2]
[337180330,1725492639921,-500.0,0.00014893,2]
[337180331,1725492639931,-500.0,0.00014893,2]
[337180332,1725492639940,-500.0,0.00014893,2]
[337180333,1725492639949,-1056.44,0.00014893,2]
[337180334,1725492639959,-534.4,0.00014893,2]
[337180335,1725492639969,-1487.04,0.00014893,2]
[337180336,1725492639978,-959.84,0.00014893,2]
[337180337,1725492639987,-500.0,0.00014893,2]
[337180338,1725492639998,-751.13,0.00014893,2]
[337180339,1725492640008,-598.39,0.00014893,2]
[337180340,1725492640018,-615.75,0.00014893,2]
[337180341,1725492640027,-500.0,0.00014893,2]
[337180342,1725492640038,-590.7,0.00014893,2]
[337180343,1725492640048,-500.0,0.00014893,2]
[337180344,1725492640057,-588.22,0.00014893,2]
[337180345,1725492640067,-528.62,0.00014893,2]
[337180346,1725492640076,-826.9,0.00014893,2]
[337180347,1725492640086,-897.12,0.00014893,2]
[337180348,1725492640096,-500.02,0.00014893,2]
[337180349,1725492640106,-500.0,0.00014893,2]
[337180350,1725492640115,-500.0,0.00014893,2]
[337180351,1725492640125,-500.0,0.00014893,2]
[337180352,1725492640135,-602.77,0.00014893,2]
[337180353,1725492640145,-500.0,0.00014893,2]
[337180354,1725492640155,-500.0,0.00014893,2]
[337180355,1725492640164,-500.0,0.00014893,2]
[337180356,1725492640173,-526.7500026,0.00014893,2]
[337180358,1725492640183,-500.0,0.00014893,2]
[337180359,1725492640192,-500.0,0.00014893,2]
[337180360,1725492640201,-1598.96,0.00014893,2]
[337180361,1725492640211,-883.81,0.00014893,2]
[337180362,1725492640220,-500.0,0.00014893,2]
[337180363,1725492640229,-945.43,0.00014893,2]
[337180364,1725492640239,-500.0,0.00014893,2]
[337180365,1725492640249,-1994.49,0.00014893,2]
[337180366,1725492640259,-1016.27,0.00014893,2]
[337180367,1725492640268,-1906.63,0.00014893,2]
[337180368,1725492640278,-1614.66,0.00014893,2]
[337180369,1725492640290,-500.0,0.00014893,2]
[337180370,1725492640307,-500.0,0.00014893,2]
[337180372,1725492640317,-500.0,0.00014893,2]
[337180374,1725492640327,-500.0,0.00014893,2]
[337180376,1725492640338,-500.0,0.00014893,2]
[337180378,1725492640347,-500.0,0.00014893,2]
[337180380,1725492640357,-1209.19,0.00014893,2]
[337180382,1725492640367,-500.0,0.00014893,2]
[337180384,1725492640376,-500.0,0.00014893,2]
[337180386,1725492640385,-464.13984397,0.00014893,2]
[337180388,1725492640395,-500.0,0.00014893,2]
[337180390,1725492640405,-500.0,0.00014893,2]
[337180392,1725492640414,-500.0,0.00014893,2]
[337180394,1725492640424,-500.0,0.00014893,2]
[337180396,1725492640433,-1878.32,0.00014893,2]
[337180398,1725492640443,-500.0,0.00014893,2]
[337180400,1725492640452,-500.0,0.00014893,2]
[337180402,1725492640462,-1727.15,0.00014893,2]
[337180404,1725492640472,-500.0,0.00014893,2]
[337180406,1725492640482,-1414.59,0.00014893,2]
[337180408,1725492640491,-500.0,0.00014893,2]
[337180410,1725492640501,-500.0,0.00014893,2]
[337180412,1725492640511,-500.0,0.00014893,2]
[337180414,1725492640520,-1722.76,0.00014893,2]
[337180416,1725492640530,-500.0,0.00014893,2]
[337180418,1725492640543,-500.0,0.00014893,2]
[337180420,1725492640552,-500.0,0.00014893,2]
[337180422,1725492640562,-1767.94,0.00014893,2]
[337180424,1725492640571,-500.0,0.00014893,2]
[337180426,1725492640581,-500.0,0.00014893,2]
[337180427,1725492640590,-500.0,0.00014893,2]
[337180429,1725492640600,-500.0,0.00014893,2]
[337180431,1725492640610,-500.0,0.00014893,2]
[337180433,1725492640619,-570.12568101,0.00014893,2]
[337180435,1725492640629,-550.15,0.00014893,2]
[337180437,1725492640639,-500.0,0.00014893,2]
[337180439,1725492640648,-664.7,0.00014893,2]
[337180441,1725492640658,-500.0,0.00014893,2]
[337180443,1725492640667,-500.0,0.00014893,2]
[337180445,1725492640677,-500.0,0.00014893,2]
[337180447,1725492640687,-500.0,0.00014893,2]
[337180449,1725492640696,-500.0,0.00014893,2]
[337180451,1725492640706,-767.84,0.00014893,2]
[337180454,1725492640716,-500.0,0.00014893,2]
[337180455,1725492640726,-500.0,0.00014893,2]
[337180458,1725492640736,-500.0,0.00014893,2]
[337180460,1725492640746,-500.0,0.00014893,2]
[337180462,1725492640756,-500.0,0.00014893,2]
[337180464,1725492640765,-500.0,0.00014893,2]
[337180466,1725492640775,-875.48,0.00014893,2]
[337180467,1725492640785,-2708.02,0.00014893,2]
[337180469,1725492640796,-500.0,0.00014893,2]
[337180471,1725492640806,-500.0,0.00014893,2]
[337180473,1725492640815,-500.0,0.00014893,2]
[337180475,1725492640825,-501.39,0.00014893,2]
[337180477,1725492640834,-748.9,0.00014893,2]
[337180479,1725492640843,-500.0,0.00014893,2]
[337180480,1725492640852,-500.0,0.00014893,2]
[337180481,1725492640863,-500.0,0.00014893,2]
[337180482,1725492640873,-500.0,0.00014893,2]
[337180483,1725492640883,-500.0,0.00014893,2]
[337180484,1725492640892,-500.0,0.00014893,2]
[337180485,1725492640902,-500.0,0.00014893,2]
[337180486,1725492640913,-500.0,0.00014893,2]
[337180487,1725492640925,-559.83,0.00014893,2]
[337180492,1725492640935,-1266.23,0.00014893,2]
[337180496,1725492641159,-2672.31,0.00014893,2]
[337180498,1725492641169,-500.0,0.00014893,2]
[337180500,1725492641178,-1301.25,0.00014893,2]
[337180502,1725492641187,-500.0,0.00014893,2]
[337180504,1725492641197,-500.0,0.00014893,2]
[337180506,1725492641206,-1043.38,0.00014893,2]
[337180508,1725492641215,-678.64,0.00014893,2]
[337180510,1725492641225,-500.0,0.00014893,2]
[337180512,1725492641234,-500.0,0.00014893,2]
[337180514,1725492641243,-500.0,0.00014893,2]
[337180516,1725492641253,-748.64,0.00014893,2]
[337180518,1725492641262,-774.74,0.00014893,2]
[337180520,1725492641271,-624.29,0.00014893,2]
[337180522,1725492641280,-500.0,0.00014893,2]
[337180524,1725492641290,-500.0,0.00014893,2]
[337180526,1725492641300,-854.14,0.00014893,2]
[337180527,1725492641309,-500.0,0.00014893,2]
[337180529,1725492641318,-500.0,0.00014893,2]
[337180531,1725492641327,-500.0,0.00014893,2]
[337180533,1725492641337,-500.0,0.00014893,2]
[337180535,1725492641346,-500.0,0.00014893,2]
[337180537,1725492641355,-897.79,0.00014893,2]
[337180539,1725492641365,-1502.18,0.00014893,2]
[337180541,1725492641374,-522.93,0.00014893,2]
[337180543,1725492641383,-500.0,0.00014893,2]
[337180545,1725492641392,-670.94,0.00014893,2]
[337180547,1725492641403,-500.0,0.00014893,2]
[337180549,1725492641413,-733.89,0.00014893,2]
[337180552,1725492641423,-1411.38,0.00014893,2]
[337180554,1725492641433,-500.0,0.00014893,2]
[337180555,1725492641443,-500.0,0.00014893,2]
[337180557,1725492641454,-723.8,0.00014893,2]
[337180559,1725492641463,-500.0,0.00014893,2]
[337180562,1725492641472,-735.36,0.00014893,2]
[337180564,1725492641482,-500.0,0.00014893,2]
[337180566,1725492641491,-500.0,0.00014893,2]
[337180567,1725492641500,-500.0,0.00014893,2]
[337180569,1725492641510,-798.56,0.00014893,2]
[337180571,1725492641519,-500.0,0.00014893,2]
[337180573,1725492641528,-1171.81,0.00014893,2]
[337180575,1725492641538,-502.99295263,0.00014893,2]
[337180577,1725492641547,-500.0,0.00014893,2]
[337180579,1725492641557,-905.23,0.00014893,2]
[337180581,1725492641567,-500.0,0.00014893,2]
[337180583,1725492641577,-500.0,0.00014893,2]
[337180585,1725492641586,-602.63,0.00014893,2]
[337180587,1725492641595,-842.44,0.00014893,2]
[337180589,1725492641605,-742.91,0.00014893,2]
[337180590,1725492641614,-884.9,0.00014893,2]
[337180592,1725492641623,-500.0,0.00014893,2]
[337180594,1725492641632,-500.0,0.00014893,2]
[337180596,1725492641641,-587.59,0.00014893,2]
[337180598,1725492641651,-500.0,0.00014893,2]
[337180600,1725492641661,-500.0,0.00014893,2]
[337180602,1725492641671,-500.0,0.00014893,2]
[337180604,1725492641680,-500.0,0.00014893,2]
[337180606,1725492641690,-500.0,0.00014893,2]
[337180608,1725492641699,-500.0,0.00014893,2]
[337180610,1725492641709,-605.51,0.00014893,2]
[337180612,1725492641719,-500.0,0.00014893,2]
[337180614,1725492641728,-500.0,0.00014893,2]
[337180616,1725492641737,-286.42,0.00014893,2]
[337180618,1725492641747,-1200.49,0.00014893,2]
[337180620,1725492641758,-500.0,0.00014893,2]
[337180622,1725492641767,-500.0,0.00014893,2]
[337180624,1725492641777,-500.0,0.00014893,2]
[337180626,1725492641787,-500.0,0.00014893,2]
[337180628,1725492641797,-588.82,0.00014893,2]
[337180630,1725492641807,-222.55053689,0.00014893,2]
[337180632,1725492641817,-1035.89,0.00014893,2]
[337180634,1725492641827,-500.0,0.00014893,2]
[337180636,1725492641838,-500.0,0.00014893,2]
[337180638,1725492641847,-500.0,0.00014893,2]
[337180640,1725492641857,-1813.95,0.00014893,2]
[337180642,1725492641866,-500.0,0.00014893,2]
[337180644,1725492641876,-500.0,0.00014893,2]
[337180646,1725492641887,-685.06,0.00014893,2]
[337180648,1725492641897,-665.98,0.00014893,2]
[337180650,1725492641906,-500.0,0.00014893,2]
[337180652,1725492641922,-605.81,0.00014893,2]
[337180654,1725492641933,-989.38,0.00014893,2]
[337180656,1725492641943,-1779.48,0.00014893,2]
[337180658,1725492641954,-500.0,0.00014893,2]
[337180660,1725492641964,-891.35,0.00014893,2]
[337180662,1725492641974,-500.0,0.00014893,2]
[337180664,1725492641984,-1516.56,0.00014893,2]
[337180666,1725492641996,-500.0,0.00014893,2]
[337180668,1725492642005,-502.493304,0.00014893,2]
[337180670,1725492642015,-682.38,0.00014893,2]
[337180672,1725492642026,-500.0,0.00014893,2]
[337180674,1725492642038,-618.25,0.00014893,2]
[337180676,1725492642047,-500.0,0.00014893,2]
[337180678,1725492642056,-500.0,0.00014893,2]
[337180680,1725492642066,-500.0,0.00014893,2]
[337180682,1725492642076,-500.0,0.00014893,2]
[337180684,1725492642086,-1108.36,0.00014893,2]
[337180686,1725492642095,-500.0,0.00014893,2]
[337180689,1725492642106,-500.0,0.00014893,2]
[337180691,1725492642116,-560.23,0.00014893,2]
[337180692,1725492642126,-876.7,0.00014893,2]
[337180694,1725492642136,-1114.92,0.00014893,2]
[337180696,1725492642145,-597.49,0.00014893,2]
[337180698,1725492642155,-500.0,0.00014893,2]
[337180700,1725492642164,-500.0,0.00014893,2]
[337180702,1725492642174,-500.0,0.00014893,2]
[337180704,1725492642183,-500.0,0.00014893,2]
[337180706,1725492642193,-597.78716179,0.00014893,2]
[337180708,1725492642202,-500.0,0.00014893,2]
[337180710,1725492642212,-500.0,0.00014893,2]
[337180712,1725492642222,-500.0,0.00014893,2]
[337180714,1725492642232,-596.32,0.00014893,2]
[337180716,1725492642242,-500.0,0.00014893,2]
[337180718,1725492642251,-500.0,0.00014893,2]
[337180720,1725492642261,-500.0,0.00014893,2]
[337180722,1725492642272,-500.0,0.00014893,2]
[337180724,1725492642281,-949.21,0.00014893,2]
[337180726,1725492642292,-500.0,0.00014893,2]
[337180728,1725492642302,-500.0,0.00014893,2]
[337180730,1725492642314,-500.0,0.00014893,2]
[337180732,1725492642324,-500.0,0.00014893,2]
[337180734,1725492642333,-500.0,0.00014893,2]
[337180736,1725492642343,-589.55,0.00014893,2]
[337180738,1725492642353,-500.0,0.00014893,2]
[337180740,1725492642362,-1372.3,0.00014893,2]
[337180742,1725492642372,-500.0,0.00014893,2]
[337180744,1725492642382,-500.0,0.00014893,2]
[337180745,1725492642391,-462.63002906,0.00014893,2]
[337180747,1725492642400,-500.0,0.00014893,2]
[337180749,1725492642409,-500.0,0.00014893,2]
[337180751,1725492642419,-949.89,0.00014893,2]
[337180753,1725492642429,-817.36,0.00014893,2]
[337180755,1725492642438,-497.04834978,0.00014893,2]
[337180757,1725492642447,-500.0,0.00014893,2]
[337180759,1725492642457,-500.0,0.00014893,2]
[337180761,1725492642466,-500.0,0.00014893,2]
[337180763,1725492642476,-500.0,0.00014893,2]
[337180765,1725492642485,-974.73,0.00014893,2]
[337180767,1725492642495,-506.45,0.00014893,2]
[337180769,1725492642504,-500.0,0.00014893,2]
[337180771,1725492642514,-500.0,0.00014893,2]
[337180773,1725492642523,-500.0,0.00014893,2]
[337180775,1725492642532,-2174.15,0.00014893,2]
[337180777,1725492642543,-500.0,0.00014893,2]
[337180779,1725492642552,-500.0,0.00014893,2]
[337180780,1725492642561,-510.11,0.00014893,2]
[337180782,1725492642571,-1428.04,0.00014893,2]
[337180784,1725492642580,-1067.2,0.00014893,2]
[337180786,1725492642589,-527.65,0.00014893,2]
[337180788,1725492642598,-500.0,0.00014893,2]
[337180790,1725492642607,-1117.93,0.00014893,2]
[337180792,1725492642616,-500.0,0.00014893,2]
[337180794,1725492642626,-500.0,0.00014893,2]
[337180797,1725492642636,-1625.99,0.00014893,2]
[337180801,1725492642645,-500.0,0.00014893,2]
[337180804,1725492642654,-500.0,0.00014893,2]
[337180807,1725492642664,-500.0,0.00014893,2]
[337180809,1725492642673,-504.63,0.00014893,2]
[337180811,1725492642682,-500.0,0.00014893,2]
[337180813,1725492642691,-611.42,0.00014893,2]
[337180815,1725492642700,-500.0,0.00014893,2]
[337180817,1725492642710,-500.0,0.00014893,2]
[337180819,1725492642719,-500.71183032,0.00014893,2]
[337180821,1725492642728,-500.0,0.00014893,2]
[337180823,1725492642738,-1000.0,0.00014893,2]
[337180825,1725492642747,-215.41728301,0.00014893,2]
[337180828,1725492642756,-708.88,0.00014893,2]
[337180830,1725492642765,-500.0,0.00014893,2]
[337180833,1725492642775,-500.0,0.00014893,2]
[337180836,1725492642784,-500.0,0.00014893,2]
[337180839,1725492642795,-500.0,0.00014893,2]
[337180843,1725492642804,-500.0,0.00014893,2]
[337180844,1725492642813,-500.0,0.00014893,2]
[337180847,1725492642822,-847.0,0.00014893,2]
[337180850,1725492642832,-500.0,0.00014893,2]
[337180853,1725492642841,-677.26,0.00014893,2]
[337180855,1725492642851,-1231.01,0.00014893,2]
[337180857,1725492642860,-500.0,0.00014893,2]
[337180859,1725492642869,-1039.29,0.00014893,2]
[337180861,1725492642878,-151.0,0.00014893,2]
[337180863,1725492642888,-1432.85,0.00014893,2]
[337180865,1725492642896,-1695.51,0.00014893,2]
[337180867,1725492642906,-978.87,0.00014893,2]
[337180869,1725492642918,-506.93,0.00014893,2]
[337180871,1725492642927,-500.0,0.00014893,2]
[337180873,1725492642937,-500.0,0.00014893,2]
[337180875,1725492642946,-608.21,0.00014893,2]
[337180877,1725492642957,-1364.77,0.00014893,2]
[337180879,1725492642967,-1853.86,0.00014893,2]
[337180881,1725492642978,-151.0,0.00014893,2]
[337180883,1725492642988,-500.71388784,0.00014893,2]
[337180885,1725492643002,-500.0,0.00014893,2]
[337180887,1725492643012,-500.0,0.00014893,2]
[337180889,1725492643021,-500.0,0.00014893,2]
[337180890,1725492643030,-151.0,0.00014893,2]
[337180892,1725492643040,-500.0,0.00014893,2]
[337180894,1725492643049,-1765.7,0.00014893,2]
[337180896,1725492643058,-500.0,0.00014893,2]
[337180898,1725492643068,-668.58,0.00014893,2]
[337180900,1725492643079,-500.0,0.00014893,2]
[337180902,1725492643088,-151.0,0.00014893,2]
[337180904,1725492643097,-500.0,0.00014893,2]
[337180906,1725492643107,-1198.51,0.00014893,2]
[337180908,1725492643116,-500.0,0.00014893,2]
[337180910,1725492643126,-1171.38,0.00014893,2]
[337180912,1725492643135,-500.0,0.00014893,2]
[337180915,1725492643145,-1009.79,0.00014893,2]
[337180917,1725492643155,-1065.08,0.00014893,2]
[337180919,1725492643166,-500.0,0.00014893,2]
[337180921,1725492643176,-551.92,0.00014893,2]
[337180923,1725492643186,-500.0,0.00014893,2]
[337180925,1725492643195,-500.0,0.00014893,2]
[337180927,1725492643204,-1087.41,0.00014893,2]
[337180929,1725492643213,-556.02,0.00014893,2]
[337180930,1725492643222,-500.0,0.00014893,2]
[337180932,1725492643232,-624.80918764,0.00014893,2]
[337180934,1725492643241,-1514.8,0.00014893,2]
[337180937,1725492643250,-500.0,0.00014893,2]
[337180940,1725492643259,-500.0,0.00014893,2]
[337180943,1725492643269,-151.0,0.00014893,2]
[337180946,1725492643278,-151.0,0.00014893,2]
[337180949,1725492643287,-500.0,0.00014893,2]
[337180952,1725492643297,-151.0,0.00014893,2]
[337180955,1725492643307,-504.67,0.00014893,2]
[337180957,1725492643316,-500.0,0.00014893,2]
[337180959,1725492643325,-500.0,0.00014893,2]
[337180961,1725492643335,-500.44599601,0.00014893,2]
[337180963,1725492643345,-152.987374,0.00014893,2]
[337180965,1725492643355,-1395.75,0.00014893,2]
[337180967,1725492643365,-1389.71,0.00014893,2]
[337180969,1725492643376,-500.0,0.00014893,2]
[337180972,1725492643386,-152.617893,0.00014893,2]
[337180974,1725492643396,-715.49,0.00014893,2]
[337180976,1725492643405,-500.0,0.00014893,2]
[337180978,1725492643415,-500.0,0.00014893,2]
[337180980,1725492643426,-500.0,0.00014893,2]
[337180982,1725492643435,-500.0,0.00014893,2]
[337180984,1725492643445,-1405.04,0.00014893,2]
[337180986,1725492643455,-2755.91,0.00014893,2]
[337180988,1725492643466,-500.0,0.00014893,2]
[337180990,1725492643477,-500.0,0.00014893,2]
[337180992,1725492643487,-500.0,0.00014893,2]
[337180994,1725492643496,-500.0,0.00014893,2]
[337180996,1725492643506,-498.27056451,0.00014893,2]
[337180998,1725492643516,-500.0,0.00014893,2]
[337181001,1725492643526,-482.26418539,0.00014893,2]
[337181003,1725492643536,-664.34,0.00014893,2]
[337181005,1725492643546,-1159.93,0.00014893,2]
[337181007,1725492643555,-500.0,0.00014893,2]
[337181009,1725492643565,-561.83,0.00014893,2]
[337181011,1725492643574,-500.0,0.00014893,2]
[337181013,1725492643584,-500.0,0.00014893,2]
[337181023,1725492643667,-500.0,0.00014893,2]
[337181025,1725492643676,-500.0,0.00014893,2]
[337181027,1725492643687,-500.0,0.00014893,2]
[337181029,1725492643697,-500.0,0.00014893,2]
[337181031,1725492643706,-500.0,0.00014893,2]
[337181033,1725492643714,-500.0,0.00014893,2]
[337181035,1725492643723,-529.87871923,0.00014893,2]
[337181037,1725492643732,-500.0,0.00014893,2]
[337181039,1725492643742,-500.0,0.00014893,2]
[337181041,1725492643751,-1154.01,0.00014893,2]
[337181043,1725492643760,-436.456677,0.00014893,2]
[337181044,1725492643769,-500.0,0.00014893,2]
[337181046,1725492643778,-500.0,0.00014893,2]
[337181048,1725492643788,-711.89,0.00014893,2]
[337181050,1725492643798,-436.456677,0.00014893,2]
[337181052,1725492643807,-151.0,0.00014893,2]
[337181054,1725492643816,-500.0,0.00014893,2]
[337181056,1725492643825,-500.0,0.00014893,2]
[337181058,1725492643834,-500.0,0.00014893,2]
[337181060,1725492643843,-500.0,0.00014893,2]
[337181062,1725492643853,-1188.0,0.00014893,2]
[337181064,1725492643863,-500.0,0.00014893,2]
[337181066,1725492643873,-500.0,0.00014893,2]
[337181068,1725492643883,-500.0,0.00014893,2]
[337181070,1725492643892,-500.0,0.00014893,2]
[337181072,1725492643902,-1799.2,0.00014893,2]
[337181074,1725492643911,-500.0,0.00014893,2]
[337181076,1725492643924,-1726.48,0.00014893,2]
[337181078,1725492643934,-500.0,0.00014893,2]
[337181080,1725492643944,-1390.03,0.00014893,2]
[337181082,1725492643953,-923.66,0.00014893,2]
[337181084,1725492643962,-151.0,0.00014893,2]
[337181085,1725492643971,-787.14,0.00014893,2]
[337181087,1725492643981,-500.0,0.00014893,2]
[337181089,1725492643990,-2862.76,0.00014893,2]
[337181091,1725492644001,-1367.6,0.00014893,2]
[337181092,1725492644010,-500.0,0.00014893,2]
[337181094,1725492644019,-1153.98,0.00014893,2]
[337181096,1725492644028,-500.0,0.00014893,2]
[337181097,1725492644037,-695.17,0.00014893,2]
[337181099,1725492644046,-500.0,0.00014893,2]
[337181101,1725492644055,-388.247873,0.00014893,2]
[337181103,1725492644064,-500.0,0.00014893,2]
[337181104,1725492644073,-842.48,0.00014893,2]
[337181106,1725492644081,-500.0,0.00014893,2]
[337181108,1725492644090,-500.0,0.00014893,2]
[337181109,1725492644099,-500.0,0.00014893,2]
[337181111,1725492644108,-500.0,0.00014893,2]
[337181113,1725492644119,-1228.14,0.00014893,2]
[337181115,1725492644129,-500.0,0.00014893,2]
[337181116,1725492644137,-2400.02,0.00014893,2]
[337181118,1725492644147,-500.0,0.00014893,2]
[337181120,1725492644157,-500.0,0.00014893,2]
[337181122,1725492644167,-3034.23,0.00014893,2]
[337181123,1725492644176,-500.0,0.00014893,2]
[337181125,1725492644185,-500.0,0.00014893,2]
[337181127,1725492644194,-500.0,0.00014893,2]
[337181129,1725492644203,-500.0,0.00014893,2]
[337181130,1725492644211,-952.51,0.00014893,2]
[337181132,1725492644223,-500.0,0.00014893,2]
[337181134,1725492644232,-500.0,0.00014893,2]